bitfinex-derivatives/quotes_SOLF0:USTF0_20251125
["timestamp","ask_amount","ask_price","bid_price","bid_amount"]
[1764037465745,0.00170215,137.72,137.7,3.06]
[1764037465942,0.00170215,137.72,137.7,9.5981]
[1764037466249,0.00170215,137.72,137.71,3.06]
[1764037466948,9.55976963,137.78,137.72,3.06]
[1764037467242,2.97,137.78,137.72,3.06]
[1764037467442,9.55976963,137.78,137.72,3.06]
[1764037467640,2.97,137.74,137.69,3.06]
[1764037468049,0.05393515,137.73,137.7,3.11506192]
[1764037471454,0.05393515,137.73,137.7,9.65296192]
[1764037471647,0.05393515,137.73,137.71,3.06]
[1764037474548,0.05393515,137.73,137.71,9.5975]
[1764037474754,0.05393515,137.73,137.72,3.06]
[1764037476754,0.05393515,137.73,137.7,3.11506192]
[1764037478460,3.02393515,137.73,137.7,0.05506192]
[1764037478848,9.56093515,137.73,137.7,0.05506192]
[1764037479051,2.97,137.71,137.7,0.05506192]
[1764037479450,2.97,137.68,137.64,3.06]
[1764037480152,2.97,137.71,137.65,3.06]
[1764037480352,0.04885554,137.69,137.67,0.05284747]
[1764037480760,0.04885554,137.69,137.67,3.11284747]
[1764037481161,0.04885554,137.69,137.67,0.05284747]
[1764037481464,3.01885554,137.69,137.67,0.05284747]
[1764037481961,0.04885554,137.69,137.67,3.11284747]
[1764037482262,3.01885554,137.69,137.67,0.05284747]
[1764037482461,0.04885554,137.69,137.67,3.11284747]
[1764037482862,3.01885554,137.69,137.67,0.05284747]
[1764037483461,0.04885554,137.69,137.67,0.05284747]
[1764037483762,0.04885554,137.69,137.67,3.11284747]
[1764037488365,0.04885554,137.69,137.68,3.02]
[1764037488560,5.39605019,137.72,137.68,3.02]
[1764037488760,41.15536963,137.76,137.68,3.02]
[1764037488962,10.55299673,137.75,137.68,3.02]
[1764037489158,10.55299673,137.74,137.68,3.02]
[1764037489359,5.39801237,137.73,137.68,3.02]
[1764037489667,0.04784482,137.72,137.7,3.02]
[1764037492267,3.05,137.68,137.59,3.02]
[1764037492461,13.59404923,137.67,137.59,3.02]
[1764037492769,17.08422132,137.66,137.59,3.02]
[1764037492978,6.5402,137.66,137.59,3.02]
[1764037493166,9.5902,137.66,137.59,3.02]
[1764037493358,0.05048499,137.64,137.61,3.06762996]
[1764037495872,3.18048499,137.64,137.61,3.06762996]
[1764037497071,0.05048499,137.64,137.61,3.06762996]
[1764037498569,3.18048499,137.64,137.61,0.04762996]
[1764037499574,3.18048499,137.64,137.61,3.14762996]
[1764037500275,3.18048499,137.64,137.61,0.04762996]
[1764037502675,3.18048499,137.64,137.61,3.14762996]
[1764037503171,3.18048499,137.64,137.61,0.04762996]
[1764037506177,0.05048499,137.64,137.61,3.14762996]
[1764037506380,3.13,137.62,137.53,3.1]
[1764037506586,3.13,137.6,137.54,3.1]
[1764037506979,9.6731,137.6,137.54,3.1]
[1764037507383,0.05150905,137.58,137.56,0.05407112]
[1764037507678,0.05150905,137.58,137.57,3.1]
[1764037508484,5.7326663,137.63,137.57,3.1]
[1764037508785,3.13,137.63,137.59,3.1]
[1764037509483,3.13,137.63,137.6,0.05053702]
[1764037509681,0.04950776,137.62,137.6,3.15053702]
[1764037511280,3.17950776,137.62,137.6,0.05053702]
[1764037512183,0.04950776,137.62,137.6,3.15053702]
[1764037515574,0.04950776,137.62,137.6,9.69333702]
[1764037515779,0.04950776,137.62,137.61,3.1]
[1764037515973,9.6694,137.68,137.61,3.1]
[1764037516184,3.13,137.68,137.63,3.1]
[1764037516385,5.07913178,137.7,137.63,3.1]
[1764037516386,5.36082356,137.7,137.63,3.1]
[1764037516981,0.05483722,137.68,137.66,3.09]
[1764037518590,8.15233524,137.74,137.67,3.09]
[1764037518792,3.07,137.74,137.67,3.09]
[1764037518988,3.07,137.74,137.68,3.09]
[1764037519197,8.4364836,137.73,137.68,3.09]
[1764037519391,3.07,137.73,137.68,3.09]
[1764037519696,0.04991978,137.72,137.69,3.13744775]
[1764037520797,0.04991978,137.72,137.69,9.67584775]
[1764037520992,0.04991978,137.72,137.7,3.09]
[1764037522689,0.04991978,137.72,137.7,9.628]
[1764037522890,0.04991978,137.72,137.71,3.09]
[1764037527613,8.16853793,137.77,137.71,3.09]
[1764037527814,8.44634269,137.76,137.71,3.09]
[1764037528004,8.16853793,137.76,137.71,3.09]
[1764037528201,3.07,137.74,137.71,3.09]
[1764037528712,3.12578431,137.74,137.71,3.14177537]
[1764037529014,0.05578431,137.74,137.71,3.14177537]
[1764037529211,3.12578431,137.74,137.71,0.05177537]
[1764037529511,3.07,137.72,137.71,0.05177537]
[1764037530700,5.37832155,137.73,137.71,0.05177537]
[1764037530915,3.07,137.73,137.71,0.05177537]
[1764037532205,3.07,137.73,137.66,3.09]
[1764037532206,3.07,137.72,137.66,3.09]
[1764037532701,8.45010188,137.72,137.66,3.09]
[1764037532900,3.07,137.72,137.66,3.09]
[1764037533310,0.05485598,137.7,137.68,3.14487471]
[1764037534714,0.05485598,137.7,137.68,9.68387471]
[1764037536214,3.12485598,137.7,137.68,0.05487471]
[1764037537717,3.07,137.69,137.68,0.05487471]
[1764037545926,3.07,137.67,137.62,43.0]
[1764037546122,3.07,137.67,137.63,3.09]
[1764037546820,0.05241853,137.66,137.64,0.05277102]
[1764037547014,2.9,137.65,137.6,3.15]
[1764037548321,0.0523805,137.64,137.62,3.15]
[1764037548526,0.04613133,137.64,137.62,3.20326015]
[1764037550025,0.04613133,137.64,137.63,3.15]
[1764037554240,0.04613133,137.64,137.62,3.20326015]
[1764037556235,3.20613133,137.64,137.62,0.05326015]
[1764037557644,8.55539254,137.63,137.62,0.05326015]
[1764037558641,13.68258373,137.63,137.62,0.05326015]
[1764037558848,13.68258373,137.63,137.56,2.93]
[1764037558849,3.16,137.61,137.56,2.93]
[1764037559837,0.05548115,137.6,137.57,2.97965831]
[1764037560348,3.21548115,137.6,137.57,0.04965831]
[1764037560744,3.21548115,137.6,137.57,2.97965831]
[1764037561650,3.21548115,137.6,137.57,0.04965831]
[1764037562347,3.16,137.59,137.57,0.04965831]
[1764037564753,3.21548115,137.6,137.57,2.97965831]
[1764037565848,0.05548115,137.6,137.57,2.97965831]
[1764037566155,3.16,137.64,137.57,2.97965831]
[1764037566549,9.7012,137.64,137.58,9.4736]
[1764037566855,3.16,137.63,137.57,0.04965831]
[1764037567150,0.05082203,137.61,137.59,0.04764331]
[1764037567347,3.21082203,137.61,137.59,0.04764331]
[1764037570253,3.16,137.6,137.54,2.93]
[1764037570453,3.16,137.58,137.51,2.93]
[1764037571152,9.705,137.56,137.53,0.04988599]
[1764037571353,3.16,137.55,137.53,0.04988599]
[1764037571661,3.16,137.54,137.47,9.479]
[1764037571872,3.16,137.53,137.47,9.479]
[1764037572564,0.04670955,137.51,137.48,2.93]
[1764037572867,0.04670955,137.51,137.47,6.549]
[1764037572868,3.20670955,137.51,137.45,9.4798]
[1764037573268,0.04670955,137.51,137.46,2.93]
[1764037573468,70.0,137.5,137.46,2.93]
[1764037573669,70.0,137.5,137.47,2.93]
[1764037574057,45.08152877,137.5,137.48,4.06379109]
[1764037574360,6.806e-05,137.51,137.48,203.7293]
[1764037574669,6.806e-05,137.51,137.46,101.8763]
[1764037574868,3.16006806,137.51,137.45,25.04]
[1764037575374,3.16006806,137.51,137.47,0.0475228]
[1764037576077,3.16006806,137.51,137.47,6.5964228]
[1764037576975,3.16006806,137.51,137.47,0.0475228]
[1764037578586,2.93,137.49,137.47,0.0475228]
[1764037578874,2.60801064,137.48,137.39,101.9353]
[1764037579180,2.93,137.47,137.4,9.16021064]
[1764037579680,2.93,137.47,137.42,2.60801064]
[1764037579681,0.04587291,137.45,137.42,2.60801064]
[1764037580072,0.04587291,137.45,137.41,6.5517]
[1764037580282,0.04587291,137.45,137.42,2.60801064]
[1764037580467,0.04587291,137.45,137.42,9.15931064]
[1764037580672,0.04587291,137.45,137.42,2.60801064]
[1764037580977,13.41515696,137.58,137.49,6.5479]
[1764037580978,2.93,137.55,137.49,6.5479]
[1764037581480,2.93,137.55,137.49,2.60801064]
[1764037581780,0.0558574,137.53,137.51,0.04759301]
[1764037581975,2.9858574,137.53,137.51,0.04759301]
[1764037582782,2.9858574,137.53,137.44,9.15831064]
[1764037582982,2.93,137.53,137.44,2.60801064]
[1764037583180,2.93,137.51,137.44,2.60801064]
[1764037583381,2.93,137.51,137.43,25.08]
[1764037583581,2.93,137.51,137.44,6.5502]
[1764037583780,2.97871779,137.48,137.43,126.9828]
[1764037584175,2.97871779,137.48,137.43,129.59081064]
[1764037584682,2.97871779,137.48,137.43,126.9828]
[1764037585184,2.97871779,137.48,137.43,31.6309]
[1764037587682,2.97871779,137.48,137.43,25.08]
[1764037587880,2.97871779,137.48,137.41,6.5517]
[1764037588290,2.97871779,137.48,137.42,6.5513]
[1764037588480,0.05196306,137.46,137.42,6.5513]
[1764037588786,0.05196306,137.46,137.43,6.5508]
[1764037589880,0.05196306,137.46,137.44,6.5502]
[1764037591392,0.05196306,137.46,137.43,25.08]
[1764037591687,2.98196306,137.46,137.43,25.08]
[1764037592889,0.05196306,137.46,137.43,25.08]
[1764037593893,2.98196306,137.46,137.43,25.08]
[1764037594388,0.05196306,137.46,137.43,25.08]
[1764037594578,0.05196306,137.46,137.43,31.6307]
[1764037595287,0.05196306,137.46,137.44,6.5503]
[1764037595894,2.98196306,137.46,137.44,6.5503]
[1764037596189,2.98196306,137.46,137.38,148.37210995]
[1764037596390,2.98196306,137.46,137.39,25.08]
[1764037596583,9.4802,137.45,137.39,25.08]
[1764037596786,2.93,137.44,137.39,25.08]
[1764037597092,0.04834795,137.43,137.39,25.08]
[1764037598092,0.04834795,137.43,137.39,31.6328]
[1764037598292,0.04834795,137.43,137.39,25.08]
[1764037598891,2.97834795,137.43,137.39,25.08]
[1764037600189,2.97834795,137.43,137.38,8.72261085]
[1764037601290,2.97834795,137.43,137.38,2.16951085]
[1764037602184,2.93,137.42,137.38,2.16951085]
[1764037602888,2.93,137.4,137.38,2.16951085]
[1764037604499,2.93,137.39,137.38,2.16951085]
[1764037607292,0.04794507,137.4,137.38,2.16951085]
[1764037607896,3.01794507,137.4,137.38,2.16951085]
[1764037608594,2.97,137.39,137.38,2.16951085]
[1764037608988,6.5534,137.38,137.32,25.1]
[1764037609189,0.05538326,137.36,137.32,25.1]
[1764037610085,0.05538326,137.36,137.32,31.6561]
[1764037615597,2.97,137.35,137.3,6.5569]
[1764037615901,2.97,137.35,137.27,2.6116506]
[1764037616195,0.04971957,137.32,137.27,2.6116506]
[1764037616395,0.04971957,137.32,137.28,6.5579]
[1764037616589,0.04971957,137.32,137.26,1.26722867]
[1764037616590,0.04971957,137.32,137.26,23.05142639]
[1764037616802,0.04971957,137.32,137.28,9.1696506]
[1764037617097,0.04971957,137.32,137.27,25.08]
[1764037617301,0.04971957,137.32,137.28,6.5581]
[1764037617503,0.04971957,137.32,137.28,2.6116506]
[1764037617896,0.04971957,137.32,137.29,6.5576]
[1764037618399,6.19383793,137.31,137.29,6.5576]
[1764037618588,6.19383793,137.3,137.29,6.5576]
[1764037619094,6.19383793,137.3,137.27,31.6384]
[1764037619398,6.19403789,137.29,137.27,31.6384]
[1764037619700,6.19403789,137.28,137.27,31.6384]
[1764037619899,2.9,137.35,137.3,6.5569]
[1764037620102,2.94647182,137.34,137.3,6.5569]
[1764037620503,2.94647182,137.34,137.31,6.5567]
[1764037620799,0.04647182,137.34,137.27,127.1009]
[1764037620991,2.94647182,137.34,137.28,25.1]
[1764037621194,0.04647182,137.34,137.28,27.7116506]
[1764037621393,0.04647182,137.34,137.3,2.6116506]
[1764037621696,0.04647182,137.34,137.29,102.0094]
[1764037623106,0.04647182,137.34,137.3,6.557]
[1764037623302,0.04647182,137.34,137.29,102.0094]
[1764037624098,0.04647182,137.34,137.32,6.5559]
[1764037625806,2.94647182,137.34,137.3,6.5569]
[1764037627006,2.94647182,137.34,137.28,31.6579]
[1764037627706,2.94647182,137.34,137.28,25.1]
[1764037627908,0.04647182,137.34,137.3,102.002]
[1764037628317,0.04647182,137.34,137.32,6.5561]
[1764037629724,0.04647182,137.34,137.32,34.2677506]
[1764037630226,0.04647182,137.34,137.32,31.6561]
[1764037631022,0.04647182,137.34,137.32,34.2677506]
[1764037635218,2.9,137.3,137.2,129.7628506]
[1764037635414,0.04765188,137.26,137.24,2.6116506]
[1764037635624,0.04765188,137.26,137.25,27.8916506]
[1764037636129,0.04765188,137.26,137.25,29.3516506]
[1764037636316,0.04765188,137.26,137.25,27.8916506]
[1764037636728,0.04765188,137.26,137.25,25.28]
[1764037638525,0.04765188,137.26,137.21,6.5612]
[1764037638726,0.04765188,137.26,137.22,25.28]
[1764037638924,0.04765188,137.26,137.22,31.8408]
[1764037639229,0.04765188,137.26,137.22,25.28]
[1764037640927,0.04765188,137.26,137.24,6.5599]
[1764037641340,0.04765188,137.26,137.24,8.0199]
[1764037641633,0.04765188,137.26,137.25,4.08756836]
[1764037641835,0.04765188,137.26,137.25,29.36756836]
[1764037642227,0.04765188,137.26,137.25,25.28]
[1764037645428,0.04765188,137.26,137.25,25.26]
[1764037650027,3.15765188,137.26,137.21,6.5612]
[1764037650220,3.11,137.25,137.21,31.8212]
[1764037650621,0.04765188,137.26,137.23,6.5604]
[1764037650821,0.04765188,137.26,137.22,102.0612]
[1764037651026,0.04765188,137.26,137.22,106.14876836]
[1764037651233,0.04765188,137.26,137.24,6.5599]
[1764037651429,0.04765188,137.26,137.25,25.26]
[1764037652336,5.69122029,137.32,137.26,102.0297]
[1764037652532,3.11,137.33,137.26,102.0297]
[1764037652732,5.6908688,137.32,137.26,102.0297]
[1764037652934,3.11,137.33,137.29,6.5576]
[1764037653237,5.74282757,137.32,137.3,0.04818375]
[1764037653433,3.16195681,137.32,137.3,0.04818375]
[1764037655733,0.05195681,137.32,137.3,6.60528375]
[1764037655940,0.05195681,137.32,137.3,0.04818375]
[1764037656439,0.05195681,137.32,137.3,6.60528375]
[1764037659039,0.05195681,137.32,137.3,10.69285211]
[1764037659239,14.02107252,137.38,137.33,6.5557]
[1764037659432,8.64544689,137.37,137.33,6.5557]
[1764037659633,5.53544689,137.36,137.31,6.5564]
[1764037659833,3.11,137.37,137.31,6.5564]
[1764037660140,0.05199986,137.35,137.33,0.05373041]
[1764037661446,0.05199986,137.35,137.33,25.31373041]
[1764037662541,0.05199986,137.35,137.33,68.31373041]
[1764037662938,0.05199986,137.35,137.33,74.86943041]
[1764037664838,0.05199986,137.35,137.33,78.95699877]
[1764037665343,5.51751252,137.4,137.35,6.5545]
[1764037665544,5.51751252,137.39,137.36,25.24]
[1764037665744,3.11,137.41,137.36,25.24]
[1764037665944,5.51698054,137.4,137.36,25.24]
[1764037666141,5.51698054,137.39,137.36,31.7943]
[1764037666346,0.05195962,137.39,137.37,0.05105446]
[1764037666949,0.05195962,137.39,137.37,6.60485446]
[1764037667249,0.05195962,137.39,137.37,0.05105446]
[1764037668651,0.05195962,137.39,137.37,6.60485446]
[1764037671242,0.05195962,137.39,137.37,0.05105446]
[1764037671447,3.13195962,137.39,137.37,25.27105446]
[1764037671649,0.05195962,137.39,137.37,25.27105446]
[1764037675453,0.05195962,137.39,137.37,0.05105446]
[1764037677158,3.17195962,137.39,137.37,0.05105446]
[1764037678553,0.05195962,137.39,137.37,0.05105446]
[1764037678757,0.05195962,137.39,137.37,6.60475446]
[1764037679359,0.05195962,137.39,137.37,0.05105446]
[1764037679360,3.17195962,137.39,137.37,0.05105446]
[1764037679746,0.05195962,137.39,137.37,0.05105446]
[1764037680254,3.17195962,137.39,137.37,0.05105446]
[1764037684360,3.17195962,137.39,137.37,6.60485446]
[1764037684361,0.05195962,137.39,137.37,6.60485446]
[1764037687761,8.55460194,137.44,137.41,6.5517]
[1764037687961,3.12,137.43,137.41,6.5517]
[1764037688254,3.12,137.46,137.4,25.16]
[1764037688962,0.0483997,137.44,137.43,6.5509]
[1764037689562,0.0483997,137.44,137.42,0.05138904]
[1764037691165,0.0483997,137.44,137.42,6.60278904]
[1764037691961,3.1683997,137.44,137.42,0.05138904]
[1764037693170,3.12,137.43,137.42,0.05138904]
[1764037704179,8.57145073,137.43,137.42,0.05138904]
[1764037705278,8.57268594,137.43,137.42,0.05138904]
[1764037707679,3.15,137.42,137.38,31.7132]
[1764037707881,3.15,137.4,137.38,31.7132]
[1764037708584,3.19881728,137.4,137.38,31.76449348]
[1764037708782,0.04881728,137.4,137.38,31.76449348]
[1764037709183,0.04881728,137.4,137.39,2.60974067]
[1764037718578,0.04881728,137.4,137.39,4.06974067]
[1764037723591,0.04881728,137.4,137.39,2.60974067]
[1764037724890,3.15,137.46,137.39,147.53894067]
[1764037725191,5.37221353,137.45,137.39,147.53894067]
[1764037725387,3.15,137.46,137.39,147.53894067]
[1764037725592,3.15,137.48,137.41,104.52744067]
[1764037725886,3.15,137.46,137.43,0.05339602]
[1764037726094,3.19961433,137.46,137.43,0.05339602]
[1764037727193,3.19961433,137.46,137.44,6.5503]
[1764037727491,3.19961433,137.46,137.43,0.05339602]
[1764037727886,3.19961433,137.46,137.44,6.5505]
[1764037728693,3.09961433,137.46,137.44,6.5505]
[1764037729496,3.09961433,137.46,137.43,0.05339602]
[1764037730394,3.09961433,137.46,137.43,6.60439602]
[1764037731485,0.04961433,137.46,137.44,6.5502]
[1764037732093,0.04961433,137.46,137.45,2.60974067]
[1764037733283,3.05,137.52,137.46,101.8787]
[1764037733491,3.05,137.54,137.48,2.60974067]
[1764037733689,13.81019447,137.53,137.5,2.60974067]
[1764037733887,3.05,137.53,137.5,2.60974067]
[1764037734199,3.05,137.55,137.51,25.06]
[1764037734387,8.47048234,137.54,137.52,0.05012693]
[1764037734590,3.10083757,137.54,137.52,0.05012693]
[1764037734787,0.05083757,137.54,137.52,0.05012693]
[1764037736811,0.05083757,137.54,137.52,6.59672693]
[1764037737006,0.05083757,137.54,137.52,0.05012693]
[1764037737304,3.06083757,137.54,137.52,0.05012693]
[1764037737708,3.06083757,137.54,137.49,25.06]
[1764037738704,3.06083757,137.54,137.5,0.04870265]
[1764037739102,3.01,137.52,137.5,0.04870265]
[1764037740704,9.5569,137.52,137.5,0.04870265]
[1764037740908,3.01,137.51,137.43,2.60974067]
[1764037741100,3.01,137.5,137.44,25.06]
[1764037741810,0.05298282,137.48,137.46,0.05576522]
[1764037742014,0.05298282,137.48,137.47,2.60974067]
[1764037743500,3.06298282,137.48,137.46,0.05576522]
[1764037743706,3.06298282,137.48,137.46,25.11576522]
[1764037745905,3.06298282,137.48,137.46,0.05576522]
[1764037746208,3.06298282,137.48,137.42,25.04]
[1764037747005,9.61178282,137.48,137.42,25.04]
[1764037747307,3.01,137.47,137.44,0.04933471]
[1764037753910,3.06298282,137.48,137.44,6.59963471]
[1764037754217,3.06298282,137.48,137.44,0.04933471]
[1764037755105,3.06298282,137.48,137.45,6.5499]
[1764037757513,3.06298282,137.48,137.44,0.04933471]
[1764037758218,3.06298282,137.48,137.44,6.59973471]
[1764037760620,3.06298282,137.48,137.45,6.55]
[1764037769829,3.06298282,137.48,137.44,25.08933471]
[1764037770225,3.07,137.46,137.44,0.04933471]
[1764037771031,9.6197,137.46,137.44,0.04933471]
[1764037771429,3.07,137.45,137.44,0.04933471]
[1764037773326,3.12298282,137.48,137.44,0.04933471]
[1764037773536,3.07,137.46,137.44,0.04933471]
[1764037774037,3.07,137.45,137.44,0.04933471]
[1764037786050,8.42612017,137.45,137.44,0.04933471]
[1764037786251,3.12298282,137.48,137.44,0.04933471]
[1764037786449,8.42653799,137.47,137.44,0.04933471]
[1764037786644,3.07,137.47,137.44,0.04933471]
[1764037786840,2.92,137.45,137.41,25.04]
[1764037787150,2.92,137.43,137.34,4.07494047]
[1764037787454,2.92,137.41,137.37,6.5537]
[1764037788153,0.05555594,137.4,137.38,6.60719137]
[1764037799558,3.19555594,137.4,137.38,6.60719137]
[1764037800347,3.19555594,137.4,137.38,0.05409137]
[1764037800861,0.05555594,137.4,137.38,0.05409137]
[1764037801659,3.14,137.46,137.39,101.9322]
[1764037801959,17.27595579,137.47,137.4,25.04]
[1764037801960,3.14,137.44,137.4,25.04]
[1764037802162,3.14,137.44,137.42,6.5513]
[1764037802462,3.14,137.44,137.4,25.04]
[1764037802657,3.19474194,137.44,137.42,0.05565776]
[1764037805962,8.48393547,137.43,137.42,0.05565776]
[1764037806361,13.87013902,137.43,137.42,0.05565776]
[1764037806664,8.48393547,137.43,137.42,0.05565776]
[1764037808157,13.87325744,137.43,137.42,0.05565776]
[1764037809958,8.48393547,137.43,137.42,0.05565776]
[1764037810660,13.87712834,137.43,137.42,0.05565776]
[1764037811264,8.48393547,137.43,137.42,0.05565776]
[1764037812266,13.87856195,137.43,137.42,0.05565776]
[1764037812951,8.53462648,137.43,137.42,0.05565776]
[1764037813149,8.49488112,137.43,137.42,0.05565776]
[1764037813348,13.89353542,137.43,137.42,0.05565776]
[1764037813549,5.35488112,137.43,137.42,0.05565776]
[1764037814156,0.05474194,137.44,137.43,6.551]
[1764037814355,13.95279228,137.44,137.43,6.551]
[1764037814561,13.95279228,137.44,137.42,0.05565776]
[1764037814762,3.19474194,137.44,137.42,0.05565776]
[1764037816063,3.19474194,137.44,137.42,6.60705776]
[1764037820274,3.19474194,137.44,137.42,0.05565776]
[1764037820570,13.91095287,137.43,137.42,0.05565776]
[1764037820959,13.91117941,137.43,137.42,0.05565776]
[1764037840292,3.15,137.42,137.38,25.04]
[1764037840481,3.15,137.4,137.38,25.04]
[1764037841085,3.19772979,137.4,137.38,31.6452325]
[1764037842691,8.52595946,137.39,137.38,0.0520325]
[1764037842887,13.92734394,137.39,137.38,0.0520325]
[1764037843192,8.52595946,137.39,137.38,0.0520325]
[1764037843982,0.04772979,137.4,137.38,0.0520325]
[1764037846192,0.04772979,137.4,137.39,6.5529]
[1764037846789,0.04772979,137.4,137.39,31.5929]
[1764037847095,0.04772979,137.4,137.39,34.20268795]
[1764037847886,2.98772979,137.4,137.39,25.04]
[1764037848085,8.34521785,137.4,137.39,25.04]
[1764037852088,2.94,137.39,137.32,104.59698795]
[1764037852398,2.94,137.37,137.33,25.04]
[1764037853199,2.98867254,137.36,137.33,25.04]
[1764037855306,2.98867254,137.36,137.33,31.5955]
[1764037855706,2.98867254,137.36,137.33,25.04]
[1764037856406,2.98867254,137.36,137.34,6.5552]
[1764037860210,2.98867254,137.36,137.32,6.5562]
[1764037861110,2.98867254,137.36,137.29,104.61568795]
[1764037861111,2.98867254,137.36,137.3,31.597]
[1764037863810,3.13,137.35,137.3,31.597]
[1764037867012,3.13,137.34,137.3,31.597]
[1764037867215,3.13,137.32,137.24,45.60978795]
[1764037867415,3.13,137.32,137.26,104.64148795]
[1764037867610,0.05234554,137.29,137.28,2.60978795]
[1764037867820,0.04918675,137.3,137.29,6.5576]
[1764037868114,0.05588114,137.31,137.29,6.5576]
[1764037868320,3.18588114,137.31,137.27,6.5585]
[1764037870013,3.18588114,137.31,137.28,6.558]
[1764037870213,0.05588114,137.31,137.28,6.558]
[1764037871323,3.18588114,137.31,137.28,6.558]
[1764037871819,0.05588114,137.31,137.29,6.5576]
[1764037872023,0.05588114,137.31,137.3,2.60978795]
[1764037872321,3.13,137.36,137.32,6.5561]
[1764037872517,8.49079958,137.39,137.32,104.59628795]
[1764037872822,3.13,137.39,137.34,2.60978795]
[1764037873321,0.05212504,137.38,137.35,0.05142946]
[1764037874116,0.05212504,137.38,137.35,6.60612946]
[1764037874725,3.18212504,137.38,137.35,6.60612946]
[1764037875418,0.05212504,137.38,137.35,6.60612946]
[1764037877323,3.11212504,137.38,137.35,0.05142946]
[1764037881328,9.66562504,137.38,137.35,0.05142946]
[1764037881528,3.06,137.37,137.35,0.05142946]
[1764037884124,9.614,137.37,137.35,0.05142946]
[1764037884334,3.06,137.36,137.35,0.05142946]
[1764037886432,8.3986852,137.36,137.35,0.05142946]
[1764037887436,8.3986852,137.36,137.31,6.5564]
[1764037887437,3.06,137.35,137.31,6.5564]
[1764037887930,3.06,137.35,137.29,25.04]
[1764037888637,0.04847563,137.33,137.3,6.5571]
[1764037888826,0.04847563,137.33,137.29,25.04]
[1764037889024,3.10847563,137.33,137.23,164.0535]
[1764037889231,3.06,137.33,137.25,106.1190053]
[1764037889540,3.06,137.36,137.29,102.0055]
[1764037889737,3.06,137.36,137.29,127.0455]
[1764037890126,3.06,137.36,137.32,6.556]
[1764037890542,3.11007993,137.35,137.33,0.05498967]
[1764037891834,3.11007993,137.35,137.33,6.61058967]
[1764037892238,3.11007993,137.35,137.33,0.05498967]
[1764037896040,3.06,137.33,137.26,127.0717]
[1764037897039,0.05144408,137.31,137.29,6.5576]
[1764037897235,3.11144408,137.31,137.26,25.04]
[1764037899147,3.11144408,137.31,137.26,31.599]
[1764037901139,3.11144408,137.31,137.26,25.04]
[1764037902646,3.11144408,137.31,137.26,31.599]
[1764037902844,3.11144408,137.31,137.22,1.26692879]
[1764037903048,3.06,137.27,137.22,25.04]
[1764037904045,0.05573654,137.28,137.22,25.04]
[1764037904250,3.11573654,137.28,137.22,25.04]
[1764037904853,3.11573654,137.28,137.23,6.5604]
[1764037906350,3.11573654,137.28,137.23,6.5605]
[1764037910456,3.11573654,137.28,137.24,6.5599]
[1764037912458,3.11573654,137.28,137.25,6.5594]
[1764037912648,0.05573654,137.28,137.24,102.0425]
[1764037912959,0.05573654,137.28,137.26,6.559]
[1764037912960,3.00573654,137.28,137.26,6.559]
[1764037914365,2.95,137.27,137.24,9.09]
[1764037914561,2.95,137.27,137.15,43.0]
[1764037914562,5.6933394,137.26,137.18,4.0812053]
[1764037914747,0.05093805,137.23,137.19,102.0837]
[1764037914954,2.95,137.31,137.24,6.5599]
[1764037915152,2.95,137.29,137.24,6.5599]
[1764037915552,2.95,137.27,137.22,25.04]
[1764037915861,2.99833989,137.26,137.23,0.05009331]
[1764037916158,0.05545983,137.26,137.24,6.5599]
[1764037923660,0.05545983,137.26,137.24,10.6411053]
[1764037926868,3.14545983,137.26,137.25,25.04]
[1764037927556,0.05545983,137.26,137.25,25.04]
[1764037927957,3.09,137.24,137.23,0.04913185]
[1764037929166,3.14545983,137.26,137.23,0.04913185]
[1764037930169,3.09,137.24,137.23,0.04913185]
[1764037931874,3.14545983,137.26,137.23,0.04913185]
[1764037932774,0.05545983,137.26,137.23,6.60963185]
[1764037933363,3.14545983,137.26,137.23,0.04913185]
[1764037933964,3.14545983,137.26,137.24,25.04]
[1764037934157,0.05545983,137.26,137.24,25.04]
[1764037935461,3.14545983,137.26,137.24,25.04]
[1764037936157,0.05545983,137.26,137.24,25.04]
[1764037936873,0.05545983,137.26,137.23,6.60953185]